fUSD/lending_fUSD_20250905
["ID","MTS","AMOUNT","RATE_DAILY","PERIOD"]
[383758815,1757109164085,-710.83633451,0.00037374,30]
[383758816,1757109164095,-352.40877461,0.00037374,2]
[383758817,1757109164106,-419.87478133,0.00037374,30]
[383758818,1757109164117,-8075.30172204,0.00037374,7]
[383758819,1757109164128,-630.19055089,0.00037374,6]
[383758820,1757109164138,-5560.63171706,0.00037374,20]
[383758821,1757109164148,-991.40715513,0.00037374,20]
[383758822,1757109164159,-6687.92163536,0.00037374,2]
[383758823,1757109164171,-276.57177721,0.00037374,120]
[383758824,1757109164182,-812.55014939,0.00037374,30]
[383758825,1757109164193,-1538.26759903,0.00037374,2]
[383758826,1757109164203,-1041.77390638,0.00037374,2]
[383758827,1757109164212,-185.27831827,0.00037374,30]
[383758828,1757109164222,-5244.28623427,0.00037374,2]
[383758829,1757109164234,-161189.61164591,0.00037374,120]
[383758830,1757109164244,-541.43270533,0.00037374,7]
[383758831,1757109164255,-350.64234279,0.00037374,2]
[383758832,1757109164266,-2482.80477544,0.00037374,2]
[383758833,1757109164277,-4113.38533638,0.00037374,2]
[383758834,1757109164287,-3779.18231037,0.00037374,7]
[383758835,1757109164296,-246893.99893574,0.00037374,2]
[383758836,1757109164306,-2735.05154167,0.00037374,2]
[383758837,1757109164316,-218774.16401576,0.00037374,2]
[383758838,1757109164326,-153.08120052,0.00037374,2]
[383758839,1757109164335,-1697.07717078,0.00037374,2]
[383758840,1757109164347,-1259.79465854,0.00037374,120]
[383758841,1757109164358,-991.96158662,0.00037374,5]
[383758842,1757109164368,-219.87734117,0.00037374,30]
[383758843,1757109164377,-248.36241369,0.00037374,90]
[383758844,1757109164387,-252.06087743,0.00037374,2]
[383758845,1757109164396,-166.35219815,0.00037374,2]
[383758846,1757109164407,-499.999999,0.00037374,2]
[383758847,1757109164417,-393.05445372,0.00037374,30]
[383758848,1757109164427,-420.85613647,0.00037374,120]
[383758849,1757109164437,-532.49472112,0.00037374,120]
[383758850,1757109164448,-1001.88932292,0.00037374,2]
[383758851,1757109164457,-1276.12445505,0.00037374,2]
[383758852,1757109164467,-164.96670477,0.00037374,60]
[383758853,1757109164476,-246.20073762,0.00037374,2]
[383758854,1757109164486,-7805.99234702,0.00037374,2]
[383758855,1757109164495,-151.95219423,0.00037374,60]
[383758856,1757109164652,-225.72686118,0.00037374,120]
[383758857,1757109164662,-163.64388734,0.00037374,2]
[383758858,1757109164672,-1053.78387288,0.00037374,2]
[383758859,1757109164682,-1134.68814616,0.00037374,30]
[383758860,1757109164693,-600.0,0.00037374,5]
[383758861,1757109164703,-551.66027926,0.00037374,2]
[383758862,1757109164713,-191.39231579,0.00037374,120]
[383758863,1757109164723,-150.64400878,0.00037374,60]
[383758864,1757109164734,-9337.76763029,0.00037374,2]
[383758865,1757109164743,-1326.5915248,0.00037374,2]
[383758866,1757109164752,-3458.16048671,0.00037374,2]
[383758867,1757109164762,-187.8081633,0.00037374,30]
[383758868,1757109164771,-312.42252968,0.00037374,120]
[383758869,1757109164781,-8125.88872932,0.00037374,2]
[383758870,1757109164790,-3797.06699738,0.00037374,7]
[383758871,1757109164800,-2221.14617881,0.00037374,2]
[383758872,1757109164811,-23064.96667159,0.00037374,2]
[383758873,1757109164821,-756.35789839,0.00037374,2]
[383758874,1757109164831,-12975.12164264,0.00037374,2]
[383758875,1757109164840,-1942.11883872,0.00037374,2]
[383758876,1757109164850,-186.21603809,0.00037374,2]
[383758877,1757109164859,-5076.29989236,0.00037374,2]
[383758878,1757109164868,-15061.16240354,0.00037374,3]
[383758879,1757109164877,-643.0,0.00037374,2]
[383758880,1757109164888,-100144.15741301,0.00037374,2]
[383758881,1757109164897,-4794.11043132,0.00037374,4]
[383758882,1757109164908,-981.95696893,0.00037374,2]
[383758883,1757109164918,-1593.68409683,0.00037374,2]
[383758884,1757109164928,-19258.75615576,0.00037374,5]
[383758885,1757109164938,-25853.26572675,0.00037374,7]
[383758886,1757109164947,-579.97097716,0.00037374,2]
[383758887,1757109164957,-1857.56415209,0.00037374,2]
[383758888,1757109164970,-1000000.0,0.00037374,2]
[383758889,1757109164979,-3277.04419618,0.00037374,2]
[383758890,1757109164988,-156.44392846,0.00037374,2]
[383758891,1757109164997,-177.34499682,0.00037374,2]
[383758892,1757109165007,-264.28559151,0.00037374,120]
[383758893,1757109165016,-9313.98779179,0.00037374,7]
[383758894,1757109165025,-188.99637577,0.00037374,2]
[383758895,1757109165034,-192.84845751,0.00037374,2]
[383758896,1757109165043,-1483.005604,0.00037374,2]
[383758897,1757109165053,-550.0,0.00037374,2]
[383758898,1757109165062,-10000.0,0.00037374,2]
[383758899,1757109165071,-1019.86036874,0.00037374,2]
[383758900,1757109165080,-1055.04328003,0.00037374,7]
[383758901,1757109165090,-10816.94853411,0.00037374,2]
[383758902,1757109165099,-171746.61358646,0.00037374,2]
[383758903,1757109165108,-15101.55802804,0.00037374,2]
[383758904,1757109165117,-655.66012655,0.00037374,120]
[383758905,1757109165126,-231.62161179,0.00037374,2]
[383758906,1757109165135,-175.7818603,0.00037374,2]
[383758907,1757109165144,-493.98587604,0.00037374,3]
[383758908,1757109165153,-661.16743836,0.00037374,120]
[383758909,1757109165163,-6000.0,0.00037374,2]
[383758910,1757109165172,-379.76263555,0.00037374,2]
[383758911,1757109165181,-1486.88776856,0.00037374,2]
[383758912,1757109165190,-473.00423501,0.00037374,7]
[383758913,1757109165199,-1045.46418697,0.00037374,2]
[383758914,1757109165208,-1190.79701111,0.00037374,2]
[383758915,1757109165217,-300.0610128,0.00037374,2]
[383758916,1757109165226,-3089.81244965,0.00037374,2]
[383758917,1757109165236,-569.71992734,0.00037374,2]
[383758918,1757109165245,-362.72117683,0.00037374,120]
[383758919,1757109165254,-150.0,0.00037374,2]
[383758920,1757109165264,-3361.12754385,0.00037374,2]
[383758921,1757109165273,-549.37582976,0.00037374,120]
[383758922,1757109165282,-7855.07628571,0.00037374,2]
[383758923,1757109165291,-179.3368543,0.00037374,30]
[383758924,1757109165300,-1000.01343892,0.00037374,2]
[383758925,1757109165309,-633.61972917,0.00037374,2]
[383758926,1757109165318,-222.19363487,0.00037374,5]
[383758927,1757109165327,-217.21877369,0.00037374,2]
[383758928,1757109165337,-166111.96557736,0.00037374,2]
[383758929,1757109165346,-658.98985614,0.00037374,120]
[383758930,1757109165355,-1499.06131646,0.00037374,120]
[383758931,1757109165365,-1079.10144973,0.00037374,2]
[383758932,1757109165374,-64281.97510694,0.00037374,120]
[383758933,1757109165384,-2500.0,0.00037374,2]
[383758934,1757109165393,-585.82025039,0.00037374,2]
[383758935,1757109165402,-346.07377337,0.00037374,2]
[383758936,1757109165411,-309.63334448,0.00037374,30]
[383758937,1757109165421,-239764.92592488,0.00037374,7]
[383758938,1757109165430,-1100.0,0.00037374,2]
[383758939,1757109165441,-5086.90409725,0.00037374,2]
[383758940,1757109165451,-922.37224695,0.00037374,2]
[383758941,1757109165460,-27270.07942293,0.00037374,2]
[383758942,1757109165469,-486.98456772,0.00037374,2]
[383758943,1757109165478,-15755.92996306,0.00037374,2]
[383758944,1757109165487,-171.79224621,0.00037374,120]
[383758945,1757109165497,-172.38324871,0.00037374,2]
[383758946,1757109165507,-238.81175298,0.00037374,3]
[383758947,1757109165516,-208.9298852,0.00037374,90]
[383758948,1757109165526,-1605.13390453,0.00037374,2]
[383758949,1757109165536,-21049.90895328,0.00037374,2]
[383758950,1757109165545,-1097.79509306,0.00037374,5]
[383758951,1757109165554,-554.46562596,0.00037374,2]
[383758952,1757109165563,-5060.82135144,0.00037374,2]
[383758953,1757109165572,-300.02430364,0.00037374,7]
[383758954,1757109165582,-1023.13534228,0.00037374,2]
[383758955,1757109165591,-368.91238581,0.00037374,2]
[383758956,1757109165600,-2228.19658738,0.00037374,2]
[383758957,1757109165609,-672.52628101,0.00037374,120]
[383758958,1757109165619,-817.51957188,0.00037374,120]
[383758959,1757109165629,-220.55135704,0.00037374,75]
[383758960,1757109165639,-200.25042513,0.00037374,120]
[383758961,1757109165649,-2224.57818715,0.00037374,120]
[383758962,1757109165660,-188.34996506,0.00037374,30]
[383758963,1757109165669,-183.58037592,0.00037374,120]
[383758964,1757109165679,-23304.4328762,0.00037374,2]
[383758965,1757109165689,-257.44781317,0.00037374,30]
[383758966,1757109165699,-379.92787317,0.00037374,120]
[383758967,1757109165709,-14956.10664894,0.00037374,2]
[383758968,1757109165719,-252.48055117,0.00037374,120]
[383758969,1757109165729,-2017.84038979,0.00037374,120]
[383758970,1757109165739,-202.15308395,0.00037374,120]
[383758971,1757109165748,-505.2130271,0.00037374,60]
[383758972,1757109165757,-1857.34538929,0.00037374,2]
[383758973,1757109165767,-2636.43621068,0.00037374,120]
[383758974,1757109165777,-6871.11114021,0.00037374,4]
[383758975,1757109165786,-8842.44696657,0.00037374,30]
[383758976,1757109165795,-3704.97082637,0.00037374,30]
[383758977,1757109165805,-1556.24780488,0.00037374,120]
[383758978,1757109165815,-221.64459968,0.00037374,7]
[383758979,1757109165824,-1130.7699137,0.00037374,2]
[383758980,1757109165833,-25124.36964464,0.00037374,5]
[383758981,1757109165843,-5271.02703826,0.00037374,4]
[383758982,1757109165852,-24405.15789467,0.00037374,2]
[383758983,1757109165862,-26282.14110263,0.00037374,90]
[383758984,1757109165871,-577.7538715,0.00037374,120]
[383758985,1757109165880,-307.95412478,0.00037374,120]
[383758986,1757109165890,-237.19103904,0.00037374,7]
[383758987,1757109165900,-407.28615038,0.00037374,2]
[383758988,1757109165910,-1499.999999,0.00037374,2]
[383758989,1757109165919,-20501.69716824,0.00037374,2]
[383758990,1757109165929,-2358.78337134,0.00037374,7]
[383758991,1757109165941,-418.56157171,0.00037374,120]
[383758992,1757109165950,-1724.95625466,0.00037374,2]
[383758993,1757109165962,-896.92967877,0.00037374,120]
[383758994,1757109165975,-205.25412522,0.00037374,2]
[383758995,1757109165984,-873.57807875,0.00037374,2]
[383758996,1757109165995,-280.58587255,0.00037374,120]
[383758997,1757109166004,-622.32476351,0.00037374,5]
[383758998,1757109166014,-3080.98968983,0.00037374,2]
[383758999,1757109166023,-5753.4352328,0.00037374,2]
[383759000,1757109166032,-286.15166355,0.00037374,2]
[383759001,1757109166043,-1030.74624733,0.00037374,7]
[383759002,1757109166053,-1125.53629591,0.00037374,2]
[383759003,1757109166062,-4633.35847854,0.00037374,2]
[383759004,1757109166073,-2198.35130137,0.00037374,2]
[383759005,1757109166084,-1047.28676983,0.00037374,2]
[383759006,1757109166094,-886.41368096,0.00037374,2]
[383759007,1757109166104,-465.90016976,0.00037374,2]
[383759008,1757109166115,-150.0,0.00037374,2]
[383759009,1757109166125,-1714.54484157,0.00037374,56]
[383759010,1757109166135,-691.1798775,0.00037374,15]
[383759011,1757109166145,-887299.17915674,0.00037374,30]
[383759012,1757109166156,-160.0,0.00037374,2]
[383759013,1757109166165,-306.1855108,0.00037374,30]
[383759014,1757109166175,-1116.01832182,0.00037374,120]
[383759015,1757109166185,-12763.73434011,0.00037374,2]
[383759016,1757109166195,-153.73725315,0.00037374,120]
[383759017,1757109166205,-563.47018471,0.00037374,30]
[383759018,1757109166215,-159.79578982,0.00037374,2]
[383759019,1757109166224,-979.72681768,0.00037374,60]
[383759020,1757109166233,-860.62858513,0.00037374,120]
[383759021,1757109166244,-201.76477627,0.00037374,2]
[383759022,1757109166254,-463.06933787,0.00037374,5]
[383759023,1757109166264,-751.17637519,0.00037374,2]
[383759024,1757109166274,-165.22323667,0.00037374,2]
[383759025,1757109166283,-180.40150227,0.00037374,2]
[383759026,1757109166292,-4266.0,0.00037374,2]
[383759027,1757109166302,-953.21170125,0.00037374,30]
[383759028,1757109166311,-280.34355992,0.00037374,2]
[383759029,1757109166321,-370.43578574,0.00037374,7]
[383759030,1757109166332,-500.0,0.00037374,120]
[383759031,1757109166342,-320.88630469,0.00037374,2]
[383759032,1757109166353,-500.82649509,0.00037374,7]
[383759033,1757109166362,-335.0,0.00037374,30]
[383759034,1757109166372,-1132.66619902,0.00037374,120]
[383759035,1757109166383,-2500.0,0.00037374,110]
[383759036,1757109166392,-10000.0,0.00037374,31]
[383759037,1757109166402,-1020.0,0.00037374,120]
[383759038,1757109166412,-1000.0,0.00037374,30]
[383759039,1757109166420,-619.0,0.00037374,30]
[383759040,1757109166430,-125309.76934397,0.00037374,2]
[383759041,1757109166440,-105307.0,0.00037374,60]
[383759042,1757109166448,-2559.0,0.00037374,60]
[383759043,1757109166457,-164.48,0.00037374,2]
[383759044,1757109166467,-193050.98054055,0.00037374,2]
[383759045,1757109166476,-12396.97408847,0.00037374,2]
[383759046,1757109166486,-1002356.73384511,0.00037374,30]
[383759047,1757109166496,-5757.5564372,0.00037374,2]
[383759048,1757109166507,-50000.0,0.00037374,30]
[383759049,1757109166516,-408.1,0.00037374,30]
[383759050,1757109166527,-343.61,0.00037374,30]
[383759051,1757109166537,-150.0,0.00037374,30]
[383759052,1757109166547,-300.00000001,0.00037374,120]
[383759053,1757109166557,-20451.34548264,0.00037374,120]
[383759054,1757109166566,-3297.01649991,0.00037374,120]
[383759055,1757109166576,-978.91443931,0.00037374,120]
[383759056,1757109166585,-327.25823751,0.00037374,30]
[383759057,1757109166594,-571.77660607,0.00037374,120]
[383759058,1757109166604,-2708.61404366,0.00037374,120]
[383759059,1757109166613,-15446.24789342,0.00037374,5]
[383759060,1757109166623,-4415.05948573,0.00037374,20]
[383759061,1757109166633,-230.50781504,0.00037374,120]
[383759062,1757109166642,-392.1796213,0.00037374,10]
[383759063,1757109166651,-499.999999,0.00037374,120]
[383759064,1757109166660,-23444.47794645,0.00037374,120]
[383759065,1757109166670,-261.0,0.00037374,60]
[383759066,1757109166679,-189.0,0.00037374,60]
[383759067,1757109166690,-225.0,0.00037374,60]
[383759068,1757109166699,-504.36795241,0.00037374,2]
[383759069,1757109166710,-372.10927717,0.00037374,7]
[383759070,1757109166721,-1500.0,0.00037374,7]
[383759071,1757109166731,-1604.26691878,0.00037374,7]
[383759072,1757109166742,-2666.44322607,0.00037374,120]
[383759073,1757109166752,-14982.8,0.00037374,30]
[383759074,1757109166762,-500.0,0.00037374,120]
[383759075,1757109166771,-604.21269121,0.00037374,120]
[383759076,1757109166781,-500.0,0.00037374,120]
[383759077,1757109166790,-500.0,0.00037374,120]
[383759078,1757109166800,-500.0,0.00037374,120]
[383759079,1757109166809,-500.0,0.00037374,120]
[383759080,1757109166820,-500.0,0.00037374,120]
[383759081,1757109166830,-500.0,0.00037374,120]
[383759082,1757109166839,-500.0,0.00037374,120]
[383759083,1757109166848,-500.0,0.00037374,120]
[383759084,1757109166858,-519.86327653,0.00037374,120]
[383759085,1757109166867,-165.0,0.00037397,30]
[383759086,1757109166876,-280.0,0.000374,30]
[383759087,1757109166886,-250.0,0.000374,14]
[383759088,1757109166896,-250.0,0.000374,14]
[383759089,1757109166906,-250.0,0.000374,14]
[383759090,1757109166919,-250.0,0.000374,14]
[383759091,1757109166930,-250.0,0.000374,14]
[383759092,1757109166941,-250.0,0.000374,14]
[383759093,1757109166950,-250.0,0.000374,14]
[383759094,1757109166959,-289.9,0.000374,14]
[383759095,1757109166971,-532.92,0.00037433,2]
[383759096,1757109166980,-150.0,0.00037451,120]
[383759097,1757109166989,-500.0,0.00037455,30]
[383759098,1757109167000,-700.0,0.0003747,2]
[383759099,1757109167009,-500.0,0.0003747,2]
[383759100,1757109167019,-150.0,0.00037496,120]
[383759101,1757109167028,-13159.05,0.000375,2]
[383759102,1757109167038,-479.21041582,0.00037516,5]
[383759103,1757109167048,-2011.0,0.00037525,20]
[383759104,1757109167057,-775.35110829,0.00037525,20]
[383759105,1757109167066,-339.30249,0.00037534,10]
[383759106,1757109167076,-634.468343,0.00037534,10]
[383759107,1757109167085,-400.0,0.00037534,10]
[383759108,1757109167094,-400.0,0.00037534,10]
[383759109,1757109167103,-400.0,0.00037534,10]
[383759110,1757109167114,-400.0,0.00037534,10]
[383759111,1757109167124,-400.0,0.00037534,10]
[383759112,1757109167134,-400.0,0.00037534,10]
[383759113,1757109167143,-400.0,0.00037534,10]
[383759114,1757109167152,-400.0,0.00037534,10]
[383759115,1757109167163,-400.0,0.00037534,10]
[383759116,1757109167172,-275.41741184,0.00037534,10]
[383759117,1757109167183,-400.0,0.00037534,10]
[383759118,1757109167193,-417.8,0.00037534,10]
[383759119,1757109167204,-400.0,0.00037534,10]
[383759120,1757109167214,-400.0,0.00037534,10]
[383759121,1757109167226,-400.0,0.00037534,10]
[383759122,1757109167236,-400.0,0.00037534,10]
[383759123,1757109167246,-400.0,0.00037534,10]
[383759124,1757109167256,-400.0,0.00037534,10]
[383759125,1757109167267,-400.0,0.00037534,10]
[383759126,1757109167277,-1000.0,0.00037534,10]
[383759127,1757109167286,-400.0,0.00037534,10]
[383759128,1757109167295,-400.0,0.00037534,10]
[383759129,1757109167304,-549.05629287,0.00037534,10]
[383759130,1757109167313,-400.0,0.00037534,10]
[383759131,1757109167322,-400.0,0.00037534,10]
[383759132,1757109167331,-400.0,0.00037534,10]
[383759133,1757109167340,-227.08724582,0.00037534,10]
[383759134,1757109167350,-400.0,0.00037534,10]
[383759135,1757109167359,-400.0,0.00037534,10]
[383759136,1757109167368,-521.92403108,0.00037534,10]
[383759137,1757109167377,-400.0,0.00037534,10]
[383759138,1757109167386,-400.0,0.00037534,10]
[383759139,1757109167395,-400.0,0.00037534,10]
[383759140,1757109167404,-400.0,0.00037534,10]
[383759141,1757109167414,-204.13412325,0.00037534,10]
[383759142,1757109167423,-400.0,0.00037534,10]
[383759143,1757109167432,-400.0,0.00037534,10]
[383759144,1757109167442,-400.0,0.00037534,10]
[383759145,1757109167452,-400.0,0.00037534,10]
[383759146,1757109167461,-400.0,0.00037534,10]
[383759147,1757109167471,-400.0,0.00037534,10]
[383759148,1757109167480,-400.0,0.00037534,10]
[383759149,1757109167490,-400.0,0.00037534,10]
[383759150,1757109167499,-400.0,0.00037534,10]
[383759151,1757109167509,-400.0,0.00037534,10]
[383759152,1757109167518,-944.57,0.00037534,10]
[383759153,1757109167528,-400.0,0.00037534,10]
[383759154,1757109167537,-300.0,0.00037534,10]
[383759155,1757109167547,-400.0,0.00037534,10]
[383759156,1757109167556,-400.0,0.00037534,10]
[383759157,1757109167566,-400.0,0.00037534,10]
[383759158,1757109167576,-846.07,0.00037534,10]
[383759159,1757109167586,-400.0,0.00037534,10]
[383759160,1757109167595,-400.0,0.00037534,10]
[383759161,1757109167605,-400.0,0.00037534,10]
[383759162,1757109167614,-400.0,0.00037534,10]
[383759163,1757109167623,-400.0,0.00037534,10]
[383759164,1757109167633,-414.99217293,0.00037534,10]
[383759165,1757109167643,-400.0,0.00037534,10]
[383759166,1757109167652,-400.0,0.00037534,10]
[383759167,1757109167662,-400.0,0.00037534,10]
[383759168,1757109167671,-564.87,0.00037534,10]
[383759169,1757109167680,-269.43546405,0.00037534,10]
[383759170,1757109167691,-400.0,0.00037534,10]
[383759171,1757109167701,-400.0,0.00037534,10]
[383759172,1757109167711,-400.0,0.00037534,10]
[383759173,1757109167720,-400.0,0.00037534,10]
[383759174,1757109167731,-400.0,0.00037534,10]
[383759175,1757109167740,-765.62,0.00037534,10]
[383759176,1757109167750,-400.0,0.00037534,10]
[383759177,1757109167760,-400.0,0.00037534,10]
[383759178,1757109167769,-400.0,0.00037534,10]
[383759179,1757109167780,-400.0,0.00037534,10]
[383759180,1757109167790,-400.0,0.00037534,10]
[383759181,1757109167799,-400.0,0.00037534,10]
[383759182,1757109167809,-400.0,0.00037534,10]
[383759183,1757109167819,-400.0,0.00037534,10]
[383759184,1757109167828,-400.0,0.00037534,10]
[383759185,1757109167837,-400.0,0.00037534,10]
[383759186,1757109167847,-400.0,0.00037534,10]
[383759187,1757109167857,-400.0,0.00037534,10]
[383759188,1757109167866,-400.0,0.00037534,10]
[383759189,1757109167875,-400.0,0.00037534,10]
[383759190,1757109167885,-400.0,0.00037534,10]
[383759191,1757109167895,-400.0,0.00037534,10]
[383759192,1757109167905,-449.33850637,0.00037534,10]
[383759193,1757109167915,-400.0,0.00037534,10]
[383759194,1757109167924,-400.0,0.00037534,10]
[383759195,1757109167933,-433.33,0.00037534,10]
[383759196,1757109167944,-400.0,0.00037534,10]
[383759197,1757109167953,-1155.55,0.00037534,10]
[383759198,1757109167963,-400.0,0.00037534,10]
[383759199,1757109167977,-400.0,0.00037534,10]
[383759200,1757109167986,-400.0,0.00037534,10]
[383759201,1757109167995,-400.0,0.00037534,10]
[383759202,1757109168005,-400.0,0.00037534,10]
[383759203,1757109168016,-400.0,0.00037534,10]
[383759204,1757109168025,-400.0,0.00037534,10]
[383759205,1757109168035,-400.0,0.00037534,10]
[383759206,1757109168045,-405.24,0.00037534,10]
[383759207,1757109168055,-678.29,0.00037534,10]
[383759208,1757109168065,-400.0,0.00037534,10]
[383759209,1757109168075,-400.0,0.00037534,10]
[383759210,1757109168084,-414.11,0.00037534,10]
[383759211,1757109168094,-400.0,0.00037534,10]
[383759212,1757109168104,-413.3,0.00037534,10]
[383759213,1757109168114,-400.0,0.00037534,10]
[383759214,1757109168123,-400.0,0.00037534,10]
[383759215,1757109168133,-400.0,0.00037534,10]
[383759216,1757109168143,-400.0,0.00037534,10]
[383759217,1757109168152,-400.0,0.00037534,10]
[383759218,1757109168162,-400.0,0.00037534,10]
[383759219,1757109168172,-400.0,0.00037534,10]
[383759220,1757109168182,-400.0,0.00037534,10]
[383759221,1757109168192,-400.0,0.00037534,10]
[383759222,1757109168202,-418.03,0.00037534,10]
[383759223,1757109168212,-400.0,0.00037534,10]
[383759224,1757109168221,-400.0,0.00037534,10]
[383759225,1757109168231,-400.0,0.00037534,10]
[383759226,1757109168241,-400.0,0.00037534,10]
[383759227,1757109168251,-400.0,0.00037534,10]
[383759228,1757109168260,-400.0,0.00037534,10]
[383759229,1757109168270,-400.0,0.00037534,10]
[383759230,1757109168279,-400.0,0.00037534,10]
[383759231,1757109168289,-400.0,0.00037534,10]
[383759232,1757109168299,-400.0,0.00037534,10]
[383759233,1757109168308,-400.0,0.00037534,10]
[383759234,1757109168318,-400.0,0.00037534,10]
[383759235,1757109168328,-400.0,0.00037534,10]
[383759236,1757109168337,-400.0,0.00037534,10]
[383759237,1757109168347,-483.66960891,0.00037534,10]
[383759238,1757109168357,-400.0,0.00037534,10]
[383759239,1757109168366,-400.0,0.00037534,10]
[383759240,1757109168376,-400.0,0.00037534,10]
[383759241,1757109168386,-400.0,0.00037534,10]
[383759242,1757109168395,-400.0,0.00037534,10]
[383759243,1757109168404,-420.25,0.00037534,10]
[383759244,1757109168414,-400.0,0.00037534,10]
[383759245,1757109168423,-400.0,0.00037534,10]
[383759246,1757109168433,-437.75,0.00037534,10]
[383759247,1757109168444,-400.0,0.00037534,10]
[383759248,1757109168454,-400.0,0.00037534,10]
[383759249,1757109168463,-400.0,0.00037534,10]
[383759250,1757109168474,-506.4,0.00037534,10]
[383759251,1757109168484,-400.0,0.00037534,10]
[383759252,1757109168493,-400.0,0.00037534,10]
[383759253,1757109168503,-400.0,0.00037534,10]
[383759254,1757109168512,-437.87,0.00037534,10]
[383759255,1757109168522,-400.0,0.00037534,10]
[383759256,1757109168532,-400.0,0.00037534,10]
[383759257,1757109168542,-400.0,0.00037534,10]
[383759258,1757109168552,-400.0,0.00037534,10]
[383759259,1757109168561,-400.0,0.00037534,10]
[383759260,1757109168571,-451.2,0.00037534,10]
[383759261,1757109168580,-537.95657256,0.00037534,10]
[383759262,1757109168590,-400.0,0.00037534,10]
[383759263,1757109168600,-400.0,0.00037534,10]
[383759264,1757109168610,-400.0,0.00037534,10]
[383759265,1757109168619,-507.92,0.00037534,10]
[383759266,1757109168628,-400.0,0.00037534,10]
[383759267,1757109168638,-400.0,0.00037534,10]
[383759268,1757109168648,-400.0,0.00037534,10]
[383759269,1757109168657,-400.0,0.00037534,10]
[383759270,1757109168667,-400.0,0.00037534,10]
[383759271,1757109168676,-400.0,0.00037534,10]
[383759272,1757109168686,-400.0,0.00037534,10]
[383759273,1757109168697,-400.0,0.00037534,10]
[383759274,1757109168707,-400.0,0.00037534,10]
[383759275,1757109168840,-461.35,0.00037534,10]
[383759276,1757109168852,-458.84,0.00037534,10]
[383759277,1757109168861,-400.0,0.00037534,10]
[383759278,1757109168871,-428.49,0.00037534,10]
[383759279,1757109168881,-1054.45,0.00037534,10]
[383759280,1757109168891,-409.45,0.00037534,10]
[383759281,1757109168901,-400.0,0.00037534,10]
[383759282,1757109168911,-400.0,0.00037534,10]
[383759283,1757109168921,-400.0,0.00037534,10]
[383759284,1757109168931,-542.29,0.00037534,10]
[383759285,1757109168942,-508.21,0.00037534,10]
[383759286,1757109168951,-400.0,0.00037534,10]
[383759287,1757109168961,-400.0,0.00037534,10]
[383759288,1757109168975,-493.63,0.00037534,10]
[383759289,1757109168985,-400.0,0.00037534,10]
[383759290,1757109168995,-449.3,0.00037534,10]
[383759291,1757109169004,-425.32,0.00037534,10]
[383759292,1757109169014,-314.22404939,0.00037534,10]
[383759293,1757109169024,-518.21,0.00037534,10]
[383759294,1757109169033,-510.04,0.00037534,10]
[383759295,1757109169043,-414.48,0.00037534,10]
[383759296,1757109169053,-400.0,0.00037534,10]
[383759297,1757109169063,-400.0,0.00037534,10]
[383759298,1757109169073,-400.0,0.00037534,10]
[383759299,1757109169083,-153.113189,0.00037534,10]
[383759300,1757109169093,-400.0,0.00037534,10]
[383759301,1757109169104,-490.71,0.00037534,10]
[383759302,1757109169115,-970.87,0.00037534,10]
[383759303,1757109169125,-436.72,0.00037534,10]
[383759304,1757109169137,-400.0,0.00037534,10]
[383759305,1757109169147,-414.95,0.00037534,10]
[383759306,1757109169158,-400.0,0.00037534,10]
[383759307,1757109169168,-400.0,0.00037534,10]
[383759308,1757109169179,-400.0,0.00037534,10]
[383759309,1757109169190,-447.82,0.00037534,10]
[383759310,1757109169203,-647.6,0.00037534,10]
[383759311,1757109169213,-400.0,0.00037534,10]
[383759312,1757109169223,-400.0,0.00037534,10]
[383759313,1757109169234,-400.0,0.00037534,10]
[383759314,1757109169244,-400.0,0.00037534,10]